Workbook

Sheet интернат гимн
A1: Согласовано | O1: Утверждено
A5: Меню для организации питания детей в возрасте с 7-10 лет, проживающих в интернате Мензелинского муниципального района на 2 полугодие 2024-2025 учебный год.
A7: 1 день, 1 неделя
A8: № рецептуры | B8: Прием пищи, наименование блюда | C8: Масса | D8: Пищевые вещества | G8: Энергетическая ценность | H8: Витамины | M8: Минеральные вещества
D9: Белки | E9: Жиры | F9: Углеводы | H9: B1 | I9: B2 | J9: A | K9: D | L9: C | M9: Na | N9: K | O9: Ca | P9: Mg | Q9: P | R9: Fe | S9: I | T9: Se | U9: F
C10: г | D10: г | E10: г | F10: г | G10: ккал | H10: мг | I10: мг | J10: мкг рет.экв | K10: мкг | L10: мг | M10: мг | N10: мг | O10: мг | P10: мг | Q10: мг | R10: мг | S10: мкг | T10: мкг | U10: мкг
B11: Завтрак
A12: 54-1о-2020 | B12: Омлет натуральный | C12: 150 | D12: 12.68 | E12: 17.95 | F12: 3.25 | G12: 225.2 | H12: 0.07 | I12: 0.4 | J12: 182.66 | K12: 2.18 | L12: 0 | M12: 264 | N12: 180 | O12: 110 | P12: 17 | Q12: 202 | R12: 2.1 | S12: 43.65 | T12: 26 | U12: 62.62
A13: 54-23гн-2020 | B13: Кофейный напиток с молоком | C13: 200 | D13: 3.9 | E13: 2.9 | F13: 11.2 | G13: 86 | H13: 0.03 | I13: 0.13 | J13: 13.29 | K13: 0 | L13: 0.52 | M13: 38.55 | N13: 183.98 | O13: 148.32 | P13: 30.67 | Q13: 106.79 | R13: 1.06 | S13: 9 | T13: 1.76 | U13: 20
A14: Пром. | B14: Хлеб пшеничный | C14: 40 | D14: 2.3 | E14: 0.2 | F14: 14.8 | G14: 70.3 | H14: 0.03 | I14: 0.01 | J14: 0 | K14: 0 | L14: 0 | M14: 149.7 | N14: 27.9 | O14: 6 | P14: 4.2 | Q14: 19.5 | R14: 0.33 | S14: 0.96 | T14: 1.8 | U14: 4.35
A15: Пром. | B15: Фрукт (яблоко, банан, апельсин) | C15: 100 | D15: 0.4 | E15: 0.4 | F15: 9.8 | G15: 44.4 | H15: 0.03 | I15: 0.02 | J15: 5 | K15: 0 | L15: 10 | M15: 26 | N15: 278 | O15: 16 | P15: 9 | Q15: 11 | R15: 2.2 | S15: 2 | T15: 0.3 | U15: 8
B16: Итого за Завтрак | C16: =C12+C13+C14+C15 -> 490 | D16: =D12+D13+D14+D15 -> 19.28 | E16: 21.45 | F16: 39.05 | G16: 425.9 | H16: 0.16 | I16: 0.56 | J16: 200.95 | K16: 2.18 | L16: 10.52 | M16: 478.25 | N16: 669.88 | O16: 280.32 | P16: 60.87 | Q16: 339.29 | R16: 5.69 | S16: 55.61 | T16: 29.86 | U16: 94.97
B17: Обед
A18: 54-7з-2020 | B18: Салат из белокочанной капусты с растительным маслом | C18: 60 | D18: 1.5 | E18: 6.1 | F18: 6.2 | G18: 85.8 | H18: 0.03 | I18: 0.04 | J18: 122.25 | K18: 0 | L18: 34.78 | M18: 88.69 | N18: 247.73 | O18: 40.39 | P18: 15.18 | Q18: 30.31 | R18: 0.55 | S18: 10.73 | T18: 0.26 | U18: 12.66
A19: 100 | B19: Суп картофельный с вермишелью | C19: 200 | D19: 2.3 | E19: 2.2 | F19: 16.2 | G19: 94.4 | H19: 0.1 | I19: 0 | J19: 0.2 | K19: 0 | L19: 5.3 | M19: 0 | N19: 0 | O19: 19.2 | P19: 18.7 | Q19: 46.1 | R19: 0.9 | S19: 0 | T19: 0 | U19: 0
A20: 54-6г-2020 | B20: Горошница | C20: 150 | D20: 3.6 | E20: 4.8 | F20: 36.4 | G20: 203.5 | H20: 0.03 | I20: 0.02 | J20: 18.36 | K20: 0.09 | L20: 0 | M20: 152.8 | N20: 46.55 | O20: 106.65 | P20: 23.59 | Q20: 72.57 | R20: 0.49 | S20: 20.76 | T20: 7.24 | U20: 27.19
A21: ном.рец №174 | B21: Тефтели мясные из говядины, полуфабрикат в соусе | C21: 75/30 | D21: 10.81 | E21: 10.4 | F21: 8.42 | G21: 168.9 | H21: 0 | I21: 0 | J21: 38.45 | K21: 0.01 | L21: 1.79 | M21: 3 | N21: 43 | O21: 45.75 | P21: 35.13 | Q21: 109 | R21: 1.6 | S21: 0 | T21: 0 | U21: 0
A22: 54-4гн-2020 | B22: Чай с молоком и сахаром | C22: 200 | D22: 1.6 | E22: 1.1 | F22: 8.6 | G22: 50.9 | H22: 0.01 | I22: 0.07 | J22: 6.9 | K22: 0 | L22: 0.3 | M22: 19.68 | N22: 81.35 | O22: 103.48 | P22: 9.92 | Q22: 46.33 | R22: 0.78 | S22: 4.5 | T22: 0.88 | U22: 10
A23: т/к №410 | B23: Треугольник П/Ф | C23: 70 | D23: 5.7 | E23: 5 | F23: 29.8 | G23: 221.7 | H23: 0.1 | I23: 0 | J23: 0 | K23: 0 | L23: 1.5 | M23: 0 | N23: 0 | O23: 26.8 | P23: 25.7 | Q23: 100.5 | R23: 1.5 | S23: 0 | T23: 0 | U23: 0
A24: Пром. | B24: Хлеб ржаной | C24: 20 | D24: 1.3 | E24: 0.2 | F24: 6.7 | G24: 34.2 | H24: 0.04 | I24: 0.02 | J24: 0 | K24: 0 | L24: 0 | M24: 122 | N24: 49 | O24: 7 | P24: 9.4 | Q24: 31.6 | R24: 0.78 | S24: 0 | T24: 6.18 | U24: 0
B25: Итого за Обед | C25: 805 | D25: =D18+D19+D20+D21+D22+D23+D24 -> 26.81 | E25: =E18+E19+E20+E21+E22+E23+E24 -> 29.8 | F25: 112.32 | G25: 859.4 | H25: 0.31 | I25: 0.15 | J25: 186.16 | K25: 0.1 | L25: 43.67 | M25: 386.17 | N25: 467.63 | O25: 349.27 | P25: 137.62 | Q25: 436.41 | R25: 6.6 | S25: 35.99 | T25: 14.56 | U25: 49.85
B26: Полдник
A27: Пром. | B27: Сок персиковый | C27: 200 | D27: 0.6 | E27: 0 | F27: 33 | G27: 134.4 | H27: 0.03 | I27: 0.06 | J27: 60 | K27: 0 | L27: 5 | M27: 9 | N27: 252 | O27: 9 | P27: 21 | Q27: 26 | R27: 0.3 | S27: 0 | T27: 0 | U27: 0
A28: Пром. | B28: Пряник | C28: 30 | D28: 1.8 | E28: 1.4 | F28: 22.5 | G28: 109.8 | H28: 0.02 | I28: 0.01 | J28: 0 | K28: 0 | L28: 0 | M28: 0.6 | N28: 21.3 | O28: 3.3 | P28: 2.7 | Q28: 15 | R28: 0.24 | S28: 0 | T28: 0 | U28: 0
B29: Итого за Полдник | C29: =C27+C28 -> 230 | D29: =D27+D28 -> 2.4 | E29: 1.4 | F29: 55.5 | G29: 244.2 | H29: 0.05 | I29: 0.07 | J29: 60 | K29: 0 | L29: 5 | M29: 9.6 | N29: 273.3 | O29: 12.3 | P29: 23.7 | Q29: 41 | R29: 0.54 | S29: 0 | T29: 0 | U29: 0
B30: Ужин
A31: 54-1г-2020 | B31: Макароны отварные | C31: 150 | D31: 5.3 | E31: 4.9 | F31: 32.8 | G31: 196.8 | H31: 0.06 | I31: 0.02 | J31: 18.36 | K31: 0.09 | L31: 0 | M31: 149.04 | N31: 53.8 | O31: 105.83 | P31: 7.19 | Q31: 40.7 | R31: 0.73 | S31: 20.77 | T31: 0.06 | U31: 11.92
A32: 54-2м-2020 | B32: Гуляш из говядины | C32: 60/40 | D32: 13.76 | E32: 13.91 | F32: 3.9 | G32: 195.8 | H32: 0.04 | I32: 0.12 | J32: 25.46 | K32: 0.07 | L32: 1 | M32: 122 | N32: 322 | O32: 55 | P32: 23 | Q32: 166 | R32: 2.5 | S32: 17.06 | T32: 0.4 | U32: 62.71
A33: 54-3гн-2020 | B33: Кисель | C33: 200 | D33: 0.01 | E33: 0 | F33: 12.62 | G33: 50.6 | H33: 0.03 | I33: 0.04 | J33: 12.5 | K33: 0 | L33: 3 | M33: 0 | N33: 1 | O33: 58 | P33: 0 | Q33: 0 | R33: 0 | S33: 0 | T33: 0 | U33: 0
A34: Пром. | B34: Хлеб пшеничный | C34: 30 | D34: 2.3 | E34: 0.2 | F34: 14.8 | G34: 70.3 | H34: 0.03 | I34: 0.01 | J34: 0 | K34: 0 | L34: 0 | M34: 149.7 | N34: 27.9 | O34: 6 | P34: 4.2 | Q34: 19.5 | R34: 0.33 | S34: 0.96 | T34: 1.8 | U34: 4.35
A35: Пром. | B35: Хлеб ржаной | C35: 20 | D35: 1.3 | E35: 0.2 | F35: 6.7 | G35: 34.2 | H35: 0.04 | I35: 0.02 | J35: 0 | K35: 0 | L35: 0 | M35: 122 | N35: 49 | O35: 7 | P35: 9.4 | Q35: 31.6 | R35: 0.78 | S35: 0 | T35: 6.18 | U35: 0
B36: Итого за Ужин | C36: 500 | D36: =D31+D32+D33+D34+D15+D38+D35 -> 28.87 | E36: 24.61 | F36: 89.02 | G36: 693.9 | H36: 0.26 | I36: 0.44 | J36: 87.72 | K36: 0.16 | L36: 14 | M36: 644.74 | N36: 973.7 | O36: 465.83 | P36: 76.79 | Q36: 428.8 | R36: 6.74 | S36: 58.79 | T36: 10.54 | U36: 126.98
B37: Ужин 2
A38: Пром. | B38: Ряженка 2.5% | C38: 200 | D38: 5.8 | E38: 5 | F38: 8.4 | G38: 101.8 | H38: 0.03 | I38: 0.21 | J38: 26.4 | K38: 0 | L38: 0 | M38: 76 | N38: 242 | O38: 218 | P38: 24 | Q38: 160 | R38: 0.2 | S38: 18 | T38: 1.8 | U38: 40
B39: Итого за ужин 2 | C39: =C38 -> 200 | D39: =D38 -> 5.8 | E39: 5 | F39: 8.4 | G39: 101.8 | H39: 0.03 | I39: 0.21 | J39: 26.4 | K39: 0 | L39: 0 | M39: 76 | N39: 242 | O39: 218 | P39: 24 | Q39: 160 | R39: 0.2 | S39: 18 | T39: 1.8 | U39: 40
B40: Итого за день | C40: =C16+C25+C29+C36+C39 -> 2225 | D40: 83.16 | E40: 82.26 | F40: 304.29 | G40: 2325.2 | H40: 0.81 | I40: 1.43 | J40: 561.23 | K40: 2.44 | L40: 73.19 | M40: 1594.76 | N40: 2626.51 | O40: 1325.72 | P40: 322.98 | Q40: 1405.5 | R40: 19.77 | S40: 168.39 | T40: 56.76 | U40: 311.8
A42: 2 день, 1 неделя
A43: № рецептуры | B43: Прием пищи, наименование блюда | C43: Масса | D43: Пищевые вещества | G43: Энергетическая ценность | H43: Витамины | M43: Минеральные вещества
D44: Белки | E44: Жиры | F44: Углеводы | H44: B1 | I44: B2 | J44: A | K44: D | L44: C | M44: Na | N44: K | O44: Ca | P44: Mg | Q44: P | R44: Fe | S44: I | T44: Se | U44: F
C45: г | D45: г | E45: г | F45: г | G45: ккал | H45: мг | I45: мг | J45: мкг рет.экв | K45: мкг | L45: мг | M45: мг | N45: мг | O45: мг | P45: мг | Q45: мг | R45: мг | S45: мкг | T45: мкг | U45: мкг
B46: Завтрак
A47: 54-1з-2020 | B47: Сыр твердых сортов в нарезке | C47: 10 | D47: 3.48 | E47: 4.42 | F47: 0 | G47: 53.7 | H47: 0 | I47: 0.04 | J47: 23.4 | K47: 0.14 | L47: 0.04 | M47: 92.34 | N47: 10.96 | O47: 116.16 | P47: 4.57 | Q47: 65.25 | R47: 0.13 | S47: 0 | T47: 1.9 | U47: 0
A48: 54-22к-2020 | B48: Каша жидкая молочная овсяная | C48: 200 | D48: 6.82 | E48: 7.44 | F48: 24.61 | G48: 192.6 | H48: 0.14 | I48: 0.17 | J48: 29.08 | K48: 0.07 | L48: 1 | M48: 348 | N48: 237 | O48: 164 | P48: 45 | Q48: 188 | R48: 1.1 | S48: 52.01 | T48: 9.9 | U48: 49.61
A49: 54-2гн-2020 | B49: Чай с сахаром | C49: 200 | D49: 0.2 | E49: 0 | F49: 6.4 | G49: 26.8 | H49: 0 | I49: 0.01 | J49: 0.3 | K49: 0 | L49: 0.04 | M49: 0.68 | N49: 20.76 | O49: 66.08 | P49: 3.83 | Q49: 7.18 | R49: 0.73 | S49: 0 | T49: 0 | U49: 0
A50: Пром. | B50: Хлеб пшеничный | C50: 30 | D50: 2.3 | E50: 0.2 | F50: 14.8 | G50: 70.3 | H50: 0.03 | I50: 0.01 | J50: 0 | K50: 0 | L50: 0 | M50: 149.7 | N50: 27.9 | O50: 6 | P50: 4.2 | Q50: 19.5 | R50: 0.33 | S50: 0.96 | T50: 1.8 | U50: 4.35
A51: Пром. | B51: Хлеб ржаной | C51: 20 | D51: 1.3 | E51: 0.2 | F51: 6.7 | G51: 34.2 | H51: 0.04 | I51: 0.02 | J51: 0 | K51: 0 | L51: 0 | M51: 122 | N51: 49 | O51: 7 | P51: 9.4 | Q51: 31.6 | R51: 0.78 | S51: 0 | T51: 6.18 | U51: 0
B52: Итого за Завтрак | C52: =C47+C48+C49+C50+C51 -> 460 | D52: =D47+D48+D49+D50+D51 -> 14.1 | E52: 12.26 | F52: 52.51 | G52: 377.6 | H52: 0.21 | I52: 0.25 | J52: 52.78 | K52: 0.21 | L52: 1.08 | M52: 712.72 | N52: 345.62 | O52: 359.24 | P52: 67 | Q52: 311.53 | R52: 3.07 | S52: 52.97 | T52: 19.78 | U52: 53.96
B53: Обед
A54: 54-11з-2020 | B54: Салат из моркови с яблоками с растительным маслом | C54: 60 | D54: 0.5 | E54: 6.1 | F54: 4.3 | G54: 74.3 | H54: 0.03 | I54: 0.03 | J54: 732.9 | K54: 0 | L54: 3.63 | M54: 89.79 | N54: 123.26 | O54: 13.5 | P54: 15.57 | Q54: 22.38 | R54: 0.66 | S54: 10.19 | T54: 0.09 | U54: 21.57
A55: 54-1с-2020 | B55: Суп щи | C55: 200 | D55: 4.66 | E55: 5.63 | F55: 5.73 | G55: 92.2 | H55: 0.01 | I55: 0.03 | J55: 104.94 | K55: 0 | L55: 10 | M55: 98 | N55: 184 | O55: 37 | P55: 13 | Q55: 30 | R55: 0.4 | S55: 15.25 | T55: 0.2 | U55: 14.76
A56: 54-4г-2020 | B56: Каша гречневая рассыпчатая | C56: 150 | D56: 3.2 | E56: 4.8 | F56: 25.9 | G56: 107.1 | H56: 0.21 | I56: 0.12 | J56: 19.19 | K56: 0.09 | L56: 0 | M56: 149.45 | N56: 219.36 | O56: 46.62 | P56: 120.16 | Q56: 180.99 | R56: 4.05 | S56: 22.28 | T56: 3.52 | U56: 16.06
A57: №Т/К 272 | B57: Котлета мясная с соусом | C57: 65/35 | D57: 11.28 | E57: 7.37 | F57: 12.4 | G57: 179.2 | H57: 0 | I57: 0 | J57: 0.1 | K57: 0 | L57: 1.8 | M57: 0 | N57: 0 | O57: 18.9 | P57: 22.1 | Q57: 115.5 | R57: 1.9 | S57: 0 | T57: 0 | U57: 0
A58: 54-1хн-2020 | B58: Компот из смеси сухофруктов | C58: 200 | D58: 0.47 | E58: 0 | F58: 14.78 | G58: 65 | H58: 0 | I58: 0 | J58: 15 | K58: 0 | L58: 0 | M58: 0 | N58: 0 | O58: 108 | P58: 2 | Q58: 4 | R58: 0.1 | S58: 0 | T58: 0 | U58: 0
A59: Пром. | B59: Хлеб пшеничный | C59: 20 | D59: 1.52 | E59: 0.16 | F59: 9.84 | G59: 46.9 | H59: 0.02 | I59: 0.01 | J59: 0 | K59: 0 | L59: 0 | M59: 100 | N59: 19 | O59: 4 | P59: 3 | Q59: 13 | R59: 0.2 | S59: 0.64 | T59: 1.2 | U59: 2.9
A60: Пром. | B60: Хлеб ржаной | C60: 20 | D60: 1.3 | E60: 0.2 | F60: 6.7 | G60: 34.2 | H60: 0.04 | I60: 0.02 | J60: 0 | K60: 0 | L60: 0 | M60: 122 | N60: 49 | O60: 7 | P60: 9.4 | Q60: 31.6 | R60: 0.78 | S60: 0 | T60: 6.18 | U60: 0
B61: Итого за Обед | C61: 750 | D61: =SUM(D54:D60) -> 22.93 | E61: 24.26 | F61: 79.65 | G61: =SUM(G54:G60) -> 598.9 | H61: =SUM(H54:H60) -> 0.31 | I61: 0.21 | J61: 872.13 | K61: 0.09 | L61: 15.43 | M61: 559.24 | N61: 594.62 | O61: 235.02 | P61: 185.23 | Q61: 397.47 | R61: 8.09 | S61: 48.36 | T61: 11.19 | U61: 55.29
B62: Полдник
A63: Пром. | B63: Вафли с фруктовыми начинками | C63: 30 | D63: 0.84 | E63: 0.99 | F63: 23.19 | G63: 105 | H63: 0.01 | I63: 0.01 | J63: 0.54 | K63: 0 | L63: 0 | M63: 11.17 | N63: 34.86 | O63: 4.22 | P63: 2.61 | Q63: 9.4 | R63: 0.39 | S63: 0 | T63: 0 | U63: 0
A64: Пром. | B64: Сок яблочный | C64: 200 | D64: 1 | E64: 0.2 | F64: 20.2 | G64: 86.6 | H64: 0.02 | I64: 0.02 | J64: 0 | K64: 0 | L64: 4 | M64: 12 | N64: 240 | O64: 14 | P64: 8 | Q64: 14 | R64: 2.8 | S64: 0 | T64: 0 | U64: 0
B65: Итого за Полдник | C65: =C63+C64 -> 230 | D65: =D63+D64 -> 1.84 | E65: 1.19 | F65: 43.39 | G65: 191.6 | H65: 0.03 | I65: 0.03 | J65: 0.54 | K65: 0 | L65: 4 | M65: 23.17 | N65: 274.86 | O65: 18.22 | P65: 10.61 | Q65: 23.4 | R65: 3.19 | S65: 0 | T65: 0 | U65: 0
B66: Ужин
A67: 54-6т-2020 | B67: Сырники из творога | C67: 160 | D67: 31.4 | E67: 9.2 | F67: 26.3 | G67: 313.2 | H67: 0.07 | I67: 0.33 | J67: 46.02 | K67: 0.15 | L67: 0.3 | M67: 146.88 | N67: 169.42 | O67: 219.92 | P67: 33.17 | Q67: 304.73 | R67: 0.87 | S67: 27.47 | T67: 40.06 | U67: 54.51
A68: 54-33хн-2020 | B68: Напиток апельсиновый | C68: 200 | D68: 0.2 | E68: 0 | F68: 8 | G68: 33 | H68: 0.01 | I68: 0.01 | J68: 1.06 | K68: 0 | L68: 5.28 | M68: 2.23 | N68: 36.15 | O68: 74.47 | P68: 2.49 | Q68: 4.4 | R68: 0.08 | S68: 0.44 | T68: 0.1 | U68: 3.74
A69: Пром. | B69: Хлеб пшеничный | C69: 30 | D69: 2.3 | E69: 0.2 | F69: 14.8 | G69: 70.3 | H69: 0.03 | I69: 0.01 | J69: 0 | K69: 0 | L69: 0 | M69: 149.7 | N69: 27.9 | O69: 6 | P69: 4.2 | Q69: 19.5 | R69: 0.33 | S69: 0.96 | T69: 1.8 | U69: 4.35
A70: 451 СПБ 2008 | B70: Пирожок печеный с картошкой | C70: 100 | D70: 1.6 | E70: 0.2 | F70: 10.3 | G70: 49.6 | H70: 0.03 | I70: 0.01 | J70: 0 | K70: 0 | L70: 0 | M70: 90.75 | N70: 27.75 | O70: 4.5 | P70: 6.9 | Q70: 18.15 | R70: 0.44 | S70: 0 | T70: 0 | U70: 0
B71: Итого за Ужин | C71: =C67+C68+C69+C70 -> 490 | D71: =D67+D68+D69+D70 -> 35.5 | E71: 9.6 | F71: 59.4 | G71: 466.1 | H71: 0.14 | I71: 0.36 | J71: 47.08 | K71: 0.15 | L71: 5.58 | M71: 389.56 | N71: 261.22 | O71: 304.89 | P71: 46.76 | Q71: 346.78 | R71: 1.72 | S71: 28.87 | T71: 41.96 | U71: 62.6
B72: Ужин 2
A73: Пром. | B73: Кефир 3.2% | C73: 200 | D73: 5.8 | E73: 5 | F73: 8 | G73: 100.2 | H73: 0.06 | I73: 0.27 | J73: 26.4 | K73: 0 | L73: 1 | M73: 76 | N73: 242 | O73: 211 | P73: 24 | Q73: 157 | R73: 0.2 | S73: 18 | T73: 3.5 | U73: 40
B74: Итого за ужин 2 | C74: =C73 -> 200 | D74: =D73 -> 5.8 | E74: 5 | F74: 8 | G74: 100.2 | H74: 0.06 | I74: 0.27 | J74: 26.4 | K74: 0 | L74: 1 | M74: 76 | N74: 242 | O74: 211 | P74: 24 | Q74: 157 | R74: 0.2 | S74: 18 | T74: 3.5 | U74: =U73 -> 40
B75: Итого за день | C75: =C52+C61+C65+C71+C74 -> 2130 | D75: 80.17 | E75: 52.31 | F75: 242.95 | G75: 1734.4 | H75: 0.75 | I75: 1.12 | J75: 998.93 | K75: 0.45 | L75: 27.09 | M75: 1760.69 | N75: 1718.32 | O75: 1128.37 | P75: 333.6 | Q75: 1236.18 | R75: 16.27 | S75: 148.2 | T75: 76.43 | U75: 211.85
A77: 3 день, 1 неделя
A78: № рецептуры | B78: Прием пищи, наименование блюда | C78: Масса | D78: Пищевые вещества | G78: Энергетическая ценность | H78: Витамины | M78: Минеральные вещества
D79: Белки | E79: Жиры | F79: Углеводы | H79: B1 | I79: B2 | J79: A | K79: D | L79: C | M79: Na | N79: K | O79: Ca | P79: Mg | Q79: P | R79: Fe | S79: I | T79: Se | U79: F
C80: г | D80: г | E80: г | F80: г | G80: ккал | H80: мг | I80: мг | J80: мкг рет.экв | K80: мкг | L80: мг | M80: мг | N80: мг | O80: мг | P80: мг | Q80: мг | R80: мг | S80: мкг | T80: мкг | U80: мкг
B81: Завтрак
A82: 53-19з-2020 | B82: Масло сливочное (порциями) | C82: 10 | D82: 0.08 | E82: 7.25 | F82: 0.13 | G82: 66.1 | H82: 0 | I82: 0.01 | J82: 27 | K82: 0.13 | L82: 0 | M82: 1.14 | N82: 2.49 | O82: 2.11 | P82: 0 | Q82: 2.61 | R82: 0.02 | S82: 0 | T82: 0.1 | U82: 0.3
A83: 54-21к-2020 | B83: Каша вязкая молочная ячневая | C83: 150 | D83: 5.4 | E83: 7 | F83: 25.6 | G83: 186.8 | H83: 0.09 | I83: 0.13 | J83: 31.14 | K83: 0.1 | L83: 0.43 | M83: 256.67 | N83: 158.61 | O83: 127.09 | P83: 24.68 | Q83: 166.41 | R83: 0.63 | S83: 37.43 | T83: 12.57 | U83: 46.68
A84: 54-3гн-2020 | B84: Кисель | C84: 200 | D84: 0.01 | E84: 0 | F84: 12.62 | G84: 50.6 | H84: 0.03 | I84: 0.04 | J84: 12.5 | K84: 0 | L84: 3 | M84: 0 | N84: 1 | O84: 58 | P84: 0 | Q84: 0 | R84: 0 | S84: 0 | T84: 0 | U84: 0
A85: Пром. | B85: Хлеб пшеничный | C85: 40 | D85: 2.3 | E85: 0.2 | F85: 14.8 | G85: 70.3 | H85: 0.03 | I85: 0.01 | J85: 0 | K85: 0 | L85: 0 | M85: 149.7 | N85: 27.9 | O85: 6 | P85: 4.2 | Q85: 19.5 | R85: 0.33 | S85: 0.96 | T85: 1.8 | U85: 4.35
B86: Итого за Завтрак | C86: =C82+C83+C84+C85 -> 400 | D86: =D82+D83+D84+D85 -> 7.79 | E86: 14.45 | F86: 53.15 | G86: 373.8 | H86: 0.15 | I86: 0.19 | J86: 70.64 | K86: 0.23 | L86: 3.43 | M86: 407.51 | N86: 190 | O86: 193.2 | P86: 28.88 | Q86: 188.52 | R86: 0.98 | S86: 38.39 | T86: 14.47 | U86: 51.33
B87: Обед
A88: 54-16з-2020 | B88: Винегрет с растительным маслом | C88: 60 | D88: 0.7 | E88: 5.4 | F88: 4 | G88: 67.1 | H88: 0.02 | I88: 0.02 | J88: 72.89 | K88: 0 | L88: 2.26 | M88: 200.99 | N88: 127.85 | O88: 12.1 | P88: 9.66 | Q88: 21.4 | R88: 0.41 | S88: 7.86 | T88: 0.13 | U88: 11.85
A89: 54-11с-2020 | B89: Суп крестьянский с крупой (крупа рисовая) | C89: 200 | D89: 5 | E89: 5.8 | F89: 11.3 | G89: 116.9 | H89: 0.04 | I89: 0.04 | J89: 103.29 | K89: 0 | L89: 6.42 | M89: 96.69 | N89: 195.41 | O89: 25.55 | P89: 15.32 | Q89: 40.39 | R89: 0.5 | S89: 15.37 | T89: 1.25 | U89: 20.68
A90: 54-1г-2020 | B90: Макароны отварные | C90: 150 | D90: 5.3 | E90: 4.9 | F90: 32.8 | G90: 196.8 | H90: 0.06 | I90: 0.02 | J90: 18.36 | K90: 0.09 | L90: 0 | M90: 149.04 | N90: 53.8 | O90: 105.83 | P90: 7.19 | Q90: 40.7 | R90: 0.73 | S90: 20.77 | T90: 0.06 | U90: 11.92
A91: № рец. 290 | B91: Птица тушеная в соусе | C91: 80/30 | D91: 13.8 | E91: 14.8 | F91: 3.9 | G91: 145 | H91: 0.1 | I91: 0 | J91: 0 | K91: 0 | L91: 1.5 | M91: 0 | N91: 0 | O91: 26.4 | P91: 16.6 | Q91: 115.3 | R91: 0.9 | S91: 0 | T91: 0 | U91: 0
A92: 54-3гн-2020 | B92: Чай с лимоном и сахаром | C92: 207 | D92: 0.2 | E92: 0.1 | F92: 6.6 | G92: 27.9 | H92: 0 | I92: 0.01 | J92: 0.38 | K92: 0 | L92: 1.16 | M92: 1.26 | N92: 30.23 | O92: 67 | P92: 4.56 | Q92: 8.52 | R92: 0.77 | S92: 0.01 | T92: 0.02 | U92: 0.7
A93: Пром. | B93: Хлеб ржаной | C93: 20 | D93: 1.3 | E93: 0.2 | F93: 6.7 | G93: 34.2 | H93: 0.04 | I93: 0.02 | J93: 0 | K93: 0 | L93: 0 | M93: 122 | N93: 49 | O93: 7 | P93: 9.4 | Q93: 31.6 | R93: 0.78 | S93: 0 | T93: 6.18 | U93: 0
A94: Пром. | B94: Хлеб пшеничный | C94: 20 | D94: 1.52 | E94: 0.16 | F94: 9.84 | G94: 46.9 | H94: 0.02 | I94: 0.01 | J94: 0 | K94: 0 | L94: 0 | M94: 100 | N94: 19 | O94: 4 | P94: 3 | Q94: 13 | R94: 0.2 | S94: 0.64 | T94: 1.2 | U94: 2.9
A95: Пром. | B95: Фрукт (яблоко, банан, апельсин) | C95: 100 | D95: 0.6 | E95: 0.6 | F95: 14.7 | G95: 66.6 | H95: 0.04 | I95: 0.03 | J95: 7.5 | K95: 0 | L95: 15 | M95: 39 | N95: 417 | O95: 24 | P95: 14 | Q95: 17 | R95: 3.3 | S95: 3 | T95: 0.4 | U95: 12
B96: Итого за Обед | C96: 867 | D96: =D88+D89+D90+D91+D92+D93+D94+D95 -> 28.42 | E96: =E88+E89+E90+E91+E92+E93+E94+E95 -> 31.96 | F96: 89.84 | G96: 701.4 | H96: 0.32 | I96: 0.15 | J96: 202.42 | K96: 0.09 | L96: 26.34 | M96: 708.98 | N96: 892.29 | O96: 271.88 | P96: 79.73 | Q96: 287.91 | R96: 7.59 | S96: 47.65 | T96: 9.24 | U96: 60.05
B97: Полдник
A98: Пром. | B98: Сок персиковый | C98: 200 | D98: 0.6 | E98: 0 | F98: 33 | G98: 134.4 | H98: 0.03 | I98: 0.06 | J98: 60 | K98: 0 | L98: 5 | M98: 9 | N98: 252 | O98: 9 | P98: 21 | Q98: 26 | R98: 0.3 | S98: 0 | T98: 0 | U98: 0
A99: 54-10в-2020 | B99: Булочка ванильная | C99: 60 | D99: 4.7 | E99: 4 | F99: 30.5 | G99: 176.9 | H99: 0.06 | I99: 0.03 | J99: 19.12 | K99: 0.14 | L99: 0 | M99: 240.68 | N99: 50.54 | O99: 17.63 | P99: 6.52 | Q99: 40.93 | R99: 0.57 | S99: 33.36 | T99: 3.15 | U99: 11.03
B100: Итого за Полдник | C100: =C98+C99 -> 260 | D100: =D98+D99 -> 5.3 | E100: 4 | F100: 63.5 | G100: 311.3 | H100: 0.09 | I100: 0.09 | J100: 79.12 | K100: 0.14 | L100: 5 | M100: 249.68 | N100: 302.54 | O100: 26.63 | P100: 27.52 | Q100: 66.93 | R100: 0.87 | S100: 33.36 | T100: 3.15 | U100: 11.03
B101: Ужин
A102: 54-22м-2020 | B102: Рагу из курицы | C102: 160/60 | D102: 23.05 | E102: 7.74 | F102: 19.27 | G102: 239 | H102: 0.15 | I102: 0.12 | J102: 285.64 | K102: 0 | L102: 13 | M102: 310 | N102: 812 | O102: 34 | P102: 102 | Q102: 213 | R102: 2.3 | S102: 47.26 | T102: 18.7 | U102: 172
A103: Пром. | B103: Хлеб ржаной | C103: 20 | D103: 1.3 | E103: 0.2 | F103: 6.7 | G103: 34.2 | H103: 0.04 | I103: 0.02 | J103: 0 | K103: 0 | L103: 0 | M103: 122 | N103: 49 | O103: 7 | P103: 9.4 | Q103: 31.6 | R103: 0.78 | S103: 0 | T103: 6.18 | U103: 0
A104: Пром. | B104: Хлеб пшеничный | C104: 30 | D104: 2.3 | E104: 0.2 | F104: 14.8 | G104: 70.3 | H104: 0.03 | I104: 0.01 | J104: 0 | K104: 0 | L104: 0 | M104: 149.7 | N104: 27.9 | O104: 6 | P104: 4.2 | Q104: 19.5 | R104: 0.33 | S104: 0.96 | T104: 1.8 | U104: 4.35
A105: 54-4гн-2020 | B105: Чай с молоком и сахаром | C105: 200 | D105: 1.6 | E105: 1.1 | F105: 8.6 | G105: 50.9 | H105: 0.01 | I105: 0.07 | J105: 6.9 | K105: 0 | L105: 0.3 | M105: 19.68 | N105: 81.35 | O105: 103.48 | P105: 9.92 | Q105: 46.33 | R105: 0.78 | S105: 4.5 | T105: 0.88 | U105: 10
B106: Итого за Ужин | C106: 470 | D106: =SUM(D102:D105) -> 28.25 | E106: =SUM(E102:E105) -> 9.24 | F106: 49.37 | G106: =SUM(G102:G105) -> 394.4 | H106: 0.23 | I106: 0.22 | J106: 292.54 | K106: 0 | L106: 13.3 | M106: 601.38 | N106: 970.25 | O106: 150.48 | P106: 125.52 | Q106: 310.43 | R106: 4.19 | S106: 52.72 | T106: 27.56 | U106: 186.35
B107: Ужин 2
A108: Пром. | B108: Ряженка 2.5% | C108: 200 | D108: 5.8 | E108: 5 | F108: 8.4 | G108: 101.8 | H108: 0.03 | I108: 0.21 | J108: 26.4 | K108: 0 | L108: 0 | M108: 76 | N108: 242 | O108: 218 | P108: 24 | Q108: 160 | R108: 0.2 | S108: 18 | T108: 1.8 | U108: 40
B109: Итого за ужин 2 | C109: =C108 -> 200 | D109: =D108 -> 5.8 | E109: 5 | F109: 8.4 | G109: 101.8 | H109: 0.03 | I109: 0.21 | J109: 26.4 | K109: 0 | L109: 0 | M109: 76 | N109: 242 | O109: 218 | P109: 24 | Q109: 160 | R109: 0.2 | S109: 18 | T109: 1.8 | U109: 40
B110: Итого за день | C110: =C86+C96+C100+C106+C109 -> 2197 | D110: =D86+D96+D100+D106+D109 -> 75.56 | E110: 64.65 | F110: 264.26 | G110: 1882.7 | H110: 0.82 | I110: 0.86 | J110: 671.12 | K110: 0.46 | L110: 48.07 | M110: 2043.55 | N110: 2597.08 | O110: 860.19 | P110: 285.65 | Q110: 1013.79 | R110: 13.83 | S110: 190.12 | T110: 56.22 | U110: 348.76
A112: 4 день, 1 неделя
A113: № рецептуры | B113: Прием пищи, наименование блюда | C113: Масса | D113: Пищевые вещества | G113: Энергетическая ценность | H113: Витамины | M113: Минеральные вещества
D114: Белки | E114: Жиры | F114: Углеводы | H114: B1 | I114: B2 | J114: A | K114: D | L114: C | M114: Na | N114: K | O114: Ca | P114: Mg | Q114: P | R114: Fe | S114: I | T114: Se | U114: F
C115: г | D115: г | E115: г | F115: г | G115: ккал | H115: мг | I115: мг | J115: мкг рет.экв | K115: мкг | L115: мг | M115: мг | N115: мг | O115: мг | P115: мг | Q115: мг | R115: мг | S115: мкг | T115: мкг | U115: мкг
B116: Завтрак
A117: 54-1з-2020 | B117: Сыр твердых сортов в нарезке | C117: 10 | D117: 2.8 | E117: 3.5 | F117: 0 | G117: 43 | H117: 0 | I117: 0.04 | J117: 31.2 | K117: 0.12 | L117: 0.08 | M117: 97.2 | N117: 10.56 | O117: 105.6 | P117: 4.2 | Q117: 60 | R117: 0.12 | S117: 0 | T117: 1.74 | U117: 0
A118: 54-13к-2020 | B118: Каша вязкая молочная пшеничная | C118: 150 | D118: 6.1 | E118: 6.9 | F118: 29 | G118: 202.7 | H118: 0.1 | I118: 0.13 | J118: 30.74 | K118: 0.1 | L118: 0.41 | M118: 256.57 | N118: 169.91 | O118: 113.68 | P118: 29.4 | Q118: 154.74 | R118: 1.64 | S118: 37.16 | T118: 24.8 | U118: 16.11
A119: 54-2гн-2020 | B119: Чай с сахаром | C119: 200 | D119: 0.2 | E119: 0 | F119: 6.4 | G119: 26.8 | H119: 0 | I119: 0.01 | J119: 0.3 | K119: 0 | L119: 0.04 | M119: 0.68 | N119: 20.76 | O119: 66.08 | P119: 3.83 | Q119: 7.18 | R119: 0.73 | S119: 0 | T119: 0 | U119: 0
A120: Пром. | B120: Хлеб пшеничный | C120: 40 | D120: 2.3 | E120: 0.2 | F120: 14.8 | G120: 70.3 | H120: 0.03 | I120: 0.01 | J120: 0 | K120: 0 | L120: 0 | M120: 149.7 | N120: 27.9 | O120: 6 | P120: 4.2 | Q120: 19.5 | R120: 0.33 | S120: 0.96 | T120: 1.8 | U120: 4.35
B121: Итого за Завтрак | C121: =C117+C118+C119+C120 -> 400 | D121: =D117+D118+D119+D120 -> 11.4 | E121: 10.6 | F121: 50.2 | G121: 342.8 | H121: 0.13 | I121: 0.19 | J121: 62.24 | K121: 0.22 | L121: 0.53 | M121: 504.15 | N121: 229.13 | O121: 291.36 | P121: 41.63 | Q121: 241.42 | R121: 2.82 | S121: 38.12 | T121: 28.34 | U121: 20.46
B122: Обед
A123: 54-9з-2020 | B123: Салат из белокочанной капусты с морковью и яблоками с растительным маслом | C123: 60 | D123: 0.8 | E123: 6.1 | F123: 3.6 | G123: 72.5 | H123: 0.02 | I123: 0.02 | J123: 241.63 | K123: 0 | L123: 17.32 | M123: 87.51 | N123: 160.14 | O123: 23.5 | P123: 11.17 | Q123: 18.8 | R123: 0.56 | S123: 9.87 | T123: 0.15 | U123: 10.98
A124: 54-6с-2020 | B124: Суп картофельный с клецками | C124: 200 | D124: 4.6 | E124: 3.3 | F124: 11.4 | G124: 93.6 | H124: 0.05 | I124: 0.04 | J124: 101.43 | K124: 0.05 | L124: 3.69 | M124: 58.01 | N124: 222.12 | O124: 13.28 | P124: 12.74 | Q124: 35.97 | R124: 0.54 | S124: 10.28 | T124: 0.94 | U124: 21.22
A125: 54-11г-2020 | B125: Картофельное пюре | C125: 150 | D125: 3.1 | E125: 5.3 | F125: 19.8 | G125: 139.4 | H125: 0.12 | I125: 0.11 | J125: 23.8 | K125: 0.09 | L125: 10.2 | M125: 161.78 | N125: 624.83 | O125: 39.49 | P125: 28.23 | Q125: 84.47 | R125: 1.03 | S125: 28.46 | T125: 0.78 | U125: 42.79
A126: т/к №296 | B126: "Ёжики" мясные 2 шт | C126: 100 | D126: 10.8 | E126: 7.3 | F126: 22.5 | G126: 240.1 | H126: 0 | I126: 0 | J126: 0 | K126: 0 | L126: 1.6 | M126: 0 | N126: 0 | O126: 26.8 | P126: 23.9 | Q126: 129.9 | R126: 1.8 | S126: 0 | T126: 0 | U126: 0
A127: Т/к №430 | B127: Чай с сахаром и яблоком | C127: 200 | D127: 0.2 | E127: 0 | F127: 8.2 | G127: 34.1 | H127: 0 | I127: 0 | J127: 0 | K127: 0 | L127: 0.4 | M127: 0 | N127: 0 | O127: 14.1 | P127: 6.5 | Q127: 8.4 | R127: 0.9 | S127: 0 | T127: 0 | U127: 0
A128: Пром. | B128: Хлеб пшеничный | C128: 20 | D128: 1.52 | E128: 0.16 | F128: 9.84 | G128: 46.9 | H128: 0.02 | I128: 0.01 | J128: 0 | K128: 0 | L128: 0 | M128: 100 | N128: 19 | O128: 4 | P128: 3 | Q128: 13 | R128: 0.2 | S128: 0.64 | T128: 1.2 | U128: 2.9
A129: Пром. | B129: Хлеб ржаной | C129: 20 | D129: 1.3 | E129: 0.2 | F129: 6.7 | G129: 34.2 | H129: 0.04 | I129: 0.02 | J129: 0 | K129: 0 | L129: 0 | M129: 122 | N129: 49 | O129: 7 | P129: 9.4 | Q129: 31.6 | R129: 0.78 | S129: 0 | T129: 6.18 | U129: 0
B130: Итого за Обед | C130: =C123+C124+C125+C126+C127+C128+C129 -> 750 | D130: =D123+D124+D125+D126+D127+D128+D129 -> 22.32 | E130: =E123+E124+E125+E126+E127+E128+E129 -> 22.36 | F130: =F123+F124+F125+F126+F127+F128+F129 -> 82.04 | G130: 660.8 | H130: 0.25 | I130: 0.2 | J130: 366.86 | K130: 0.14 | L130: 33.21 | M130: 529.3 | N130: 1075.09 | O130: 128.17 | P130: 94.94 | Q130: 322.14 | R130: 5.81 | S130: 49.25 | T130: 9.25 | U130: 77.89
B131: Полдник
A132: Пром. | B132: Сушка простая | C132: 20 | D132: 3.27 | E132: 0.39 | F132: 20.64 | G132: 99.1 | H132: 0.05 | I132: 0.02 | J132: 0 | K132: 0 | L132: 0 | M132: 137.94 | N132: 46.06 | O132: 7.92 | P132: 12.01 | Q132: 31.58 | R132: 0.76 | S132: 0 | T132: 0 | U132: 0
A133: Пром. | B133: Сок яблочный | C133: 200 | D133: 1 | E133: 0.2 | F133: 20.2 | G133: 86.6 | H133: 0.02 | I133: 0.02 | J133: 0 | K133: 0 | L133: 4 | M133: 12 | N133: 240 | O133: 14 | P133: 8 | Q133: 14 | R133: 2.8 | S133: 0 | T133: 0 | U133: 0
B134: Итого за Полдник | C134: =C132+C133 -> 220 | D134: =D132+D133 -> 4.27 | E134: =E132+E133 -> 0.59 | F134: 40.84 | G134: 185.7 | H134: 0.07 | I134: 0.04 | J134: 0 | K134: 0 | L134: 4 | M134: 149.94 | N134: 286.06 | O134: 21.92 | P134: 20.01 | Q134: 45.58 | R134: 3.56 | S134: 0 | T134: 0 | U134: 0
B135: Ужин
A136: 54-6г-2020 | B136: Горошница | C136: 150 | D136: 3.6 | E136: 4.8 | F136: 36.4 | G136: 203.5 | H136: 0.03 | I136: 0.02 | J136: 18.36 | K136: 0.09 | L136: 0 | M136: 152.8 | N136: 46.55 | O136: 106.65 | P136: 23.59 | Q136: 72.57 | R136: 0.49 | S136: 20.76 | T136: 7.24 | U136: 27.19
A137: ном.рец №174 | B137: Тефтели мясные из говядины, полуфабрикат в соусе | C137: 75/30 | D137: 10.81 | E137: 10.4 | F137: 8.42 | G137: 168.9 | H137: 0 | I137: 0 | J137: 38.45 | K137: 0.01 | L137: 1.79 | M137: 3 | N137: 43 | O137: 45.75 | P137: 35.13 | Q137: 109 | R137: 1.6 | S137: 0 | T137: 0 | U137: 0
A138: 54-1гн-2020 | B138: Чай без сахара | C138: 200 | D138: 0.2 | E138: 0 | F138: 0.1 | G138: 1.4 | H138: 0 | I138: 0.01 | J138: 0.3 | K138: 0 | L138: 0.04 | M138: 0.62 | N138: 20.58 | O138: 65.96 | P138: 3.83 | Q138: 7.18 | R138: 0.71 | S138: 0 | T138: 0 | U138: 0
A139: Пром. | B139: Хлеб пшеничный | C139: 30 | D139: 2.3 | E139: 0.2 | F139: 14.8 | G139: 70.3 | H139: 0.03 | I139: 0.01 | J139: 0 | K139: 0 | L139: 0 | M139: 149.7 | N139: 27.9 | O139: 6 | P139: 4.2 | Q139: 19.5 | R139: 0.33 | S139: 0.96 | T139: 1.8 | U139: 4.35
A140: Пром. | B140: Фрукт (апельсин, банан, яблоко) | C140: 100 | D140: 1.57 | E140: 0.35 | F140: 14.17 | G140: 66.1 | H140: 0.05 | I140: 0.04 | J140: 8.4 | K140: 0 | L140: 42 | M140: 17 | N140: 286 | O140: 52 | P140: 20 | Q140: 35 | R140: 0.5 | S140: 3.5 | T140: 0.8 | U140: 29.75
B141: Итого за Ужин | C141: 585 | D141: =SUM(D136:D140) -> 18.48 | E141: =SUM(E136:E140) -> 15.75 | F141: 73.89 | G141: 510.2 | H141: 0.11 | I141: 0.08 | J141: 65.51 | K141: 0.1 | L141: 43.83 | M141: 323.12 | N141: 424.03 | O141: 276.36 | P141: 86.75 | Q141: 243.25 | R141: 3.63 | S141: 25.22 | T141: 9.84 | U141: 61.29
B142: Ужин 2
A143: Пром. | B143: Кефир 3.2% | C143: 200 | D143: 5.8 | E143: 5 | F143: 8 | G143: 100.2 | H143: 0.06 | I143: 0.27 | J143: 26.4 | K143: 0 | L143: 1 | M143: 76 | N143: 242 | O143: 211 | P143: 24 | Q143: 157 | R143: 0.2 | S143: 18 | T143: 3.5 | U143: 40
B144: Итого за ужин 2 | C144: =C143 -> 200 | D144: =D143 -> 5.8 | E144: 5 | F144: 8 | G144: 100.2 | H144: 0.06 | I144: 0.27 | J144: 26.4 | K144: 0 | L144: 1 | M144: 76 | N144: 242 | O144: 211 | P144: 24 | Q144: 157 | R144: 0.2 | S144: 18 | T144: 3.5 | U144: 40
B145: Итого за день | C145: =C121+C130+C134+C141+C144 -> 2155 | D145: =D121+D130+D134+D141+D144 -> 62.27 | E145: 54.3 | F145: 254.97 | G145: 1799.7 | H145: 0.62 | I145: 0.78 | J145: 521.01 | K145: 0.46 | L145: 82.57 | M145: 1582.51 | N145: 2256.31 | O145: 928.81 | P145: 267.33 | Q145: 1009.39 | R145: 16.02 | S145: 130.59 | T145: 50.93 | U145: 199.64
A147: 5 день, 1 неделя
A148: № рецептуры | B148: Прием пищи, наименование блюда | C148: Масса | D148: Пищевые вещества | G148: Энергетическая ценность | H148: Витамины | M148: Минеральные вещества
D149: Белки | E149: Жиры | F149: Углеводы | H149: B1 | I149: B2 | J149: A | K149: D | L149: C | M149: Na | N149: K | O149: Ca | P149: Mg | Q149: P | R149: Fe | S149: I | T149: Se | U149: F
C150: г | D150: г | E150: г | F150: г | G150: ккал | H150: мг | I150: мг | J150: мкг рет.экв | K150: мкг | L150: мг | M150: мг | N150: мг | O150: мг | P150: мг | Q150: мг | R150: мг | S150: мкг | T150: мкг | U150: мкг
B151: Завтрак
A152: 54-16к-2020 | B152: Каша "Дружба" | C152: 160 | D152: 3.99 | E152: 4.72 | F152: 19.2 | G152: 135.1 | H152: 0.06 | I152: 0.1 | J152: 21.73 | K152: 0.05 | L152: 0 | M152: 268 | N152: 125 | O152: 110 | P152: 21 | Q152: 100 | R152: 0.4 | S152: 39.91 | T152: 3.2 | U152: 24.89
A153: 54-21гн-2020 | B153: Какао с молоком | C153: 200 | D153: 4.7 | E153: 3.5 | F153: 12.5 | G153: 100.4 | H153: 0.04 | I153: 0.16 | J153: 17.25 | K153: 0 | L153: 0.68 | M153: 49.95 | N153: 220.33 | O153: 167.68 | P153: 34.32 | Q153: 130.28 | R153: 1.09 | S153: 11.7 | T153: 2.29 | U153: 38.25
A154: Пром. | B154: Хлеб пшеничный | C154: 30 | D154: 2.3 | E154: 0.2 | F154: 14.8 | G154: 70.3 | H154: 0.03 | I154: 0.01 | J154: 0 | K154: 0 | L154: 0 | M154: 149.7 | N154: 27.9 | O154: 6 | P154: 4.2 | Q154: 19.5 | R154: 0.33 | S154: 0.96 | T154: 1.8 | U154: 4.35
B155: Итого за Завтрак | C155: =C152+C153+C154 -> 390 | D155: =D152+D153+D154 -> 10.99 | E155: 8.42 | F155: 46.5 | G155: 305.8 | H155: 0.13 | I155: 0.27 | J155: 38.98 | K155: 0.05 | L155: 0.68 | M155: 467.65 | N155: 373.23 | O155: 283.68 | P155: 59.52 | Q155: 249.78 | R155: 1.82 | S155: 52.57 | T155: 7.29 | U155: 67.49
B156: Обед
A157: 54-11з-2020 | B157: Салат из моркови с яблоками с растительным маслом | C157: 60 | D157: 0.5 | E157: 6.1 | F157: 4.3 | G157: 74.3 | H157: 0.03 | I157: 0.03 | J157: 732.9 | K157: 0 | L157: 3.63 | M157: 89.79 | N157: 123.26 | O157: 13.5 | P157: 15.57 | Q157: 22.38 | R157: 0.66 | S157: 10.19 | T157: 0.09 | U157: 21.57
A158: 54-8с-2020 | B158: Суп гороховый | C158: 200 | D158: 6.7 | E158: 4.6 | F158: 16.3 | G158: 133.1 | H158: 0.14 | I158: 0.05 | J158: 97.19 | K158: 0 | L158: 4.77 | M158: 95.82 | N158: 382.43 | O158: 26.94 | P158: 29 | Q158: 80.47 | R158: 1.48 | S158: 15.96 | T158: 2.01 | U158: 28.88
A159: 54-12м-2020 | B159: Плов с куринными грудками | C159: 150/50 | D159: 11.7 | E159: 8.98 | F159: 26.01 | G159: 233.2 | H159: 0.07 | I159: 0.06 | J159: 144.87 | K159: 0 | L159: 2.08 | M159: 272.9 | N159: 287.76 | O159: 72.64 | P159: 78.85 | Q159: 174.89 | R159: 1.53 | S159: 37.41 | T159: 19.63 | U159: 118.1
A160: 54-1хн-2020 | B160: Компот из смеси сухофруктов | C160: 200 | D160: 0.47 | E160: 0 | F160: 14.78 | G160: 65 | H160: 0 | I160: 0 | J160: 15 | K160: 0 | L160: 0 | M160: 0 | N160: 0 | O160: 108 | P160: 2 | Q160: 4 | R160: 0.1 | S160: 0 | T160: 0 | U160: 0
A161: Пром. | B161: Хлеб пшеничный | C161: 20 | D161: 1.52 | E161: 0.16 | F161: 9.84 | G161: 46.9 | H161: 0.02 | I161: 0.01 | J161: 0 | K161: 0 | L161: 0 | M161: 100 | N161: 19 | O161: 4 | P161: 3 | Q161: 13 | R161: 0.2 | S161: 0.64 | T161: 1.2 | U161: 2.9
A162: Пром. | B162: Хлеб ржаной | C162: 20 | D162: 1.3 | E162: 0.2 | F162: 6.7 | G162: 34.2 | H162: 0.04 | I162: 0.02 | J162: 0 | K162: 0 | L162: 0 | M162: 122 | N162: 49 | O162: 7 | P162: 9.4 | Q162: 31.6 | R162: 0.78 | S162: 0 | T162: 6.18 | U162: 0
A163: 54-10в-2020 | B163: Булочка ванильная | C163: 60 | D163: 4.7 | E163: 4 | F163: 30.5 | G163: 176.9 | H163: 0.06 | I163: 0.03 | J163: 19.12 | K163: 0.14 | L163: 0 | M163: 240.68 | N163: 50.54 | O163: 17.63 | P163: 6.52 | Q163: 40.93 | R163: 0.57 | S163: 33.36 | T163: 3.15 | U163: 11.03
B164: Итого за Обед | C164: 760 | D164: =SUM(D157:D163) -> 26.89 | E164: =SUM(E157:E163) -> 24.04 | F164: 108.43 | G164: 763.6 | H164: 0.36 | I164: 0.2 | J164: 1009.08 | K164: 0.14 | L164: 10.48 | M164: 921.19 | N164: 911.99 | O164: 249.71 | P164: 144.34 | Q164: 367.27 | R164: 5.32 | S164: 97.56 | T164: 32.26 | U164: 182.48
B165: Полдник
A166: Пром. | B166: Сок персиковый | C166: 200 | D166: 0.6 | E166: 0 | F166: 33 | G166: 134.4 | H166: 0.03 | I166: 0.06 | J166: 60 | K166: 0 | L166: 5 | M166: 9 | N166: 252 | O166: 9 | P166: 21 | Q166: 26 | R166: 0.3 | S166: 0 | T166: 0 | U166: 0
A167: Пром. | B167: Пряник | C167: 30 | D167: 1.8 | E167: 1.4 | F167: 22.5 | G167: 109.8 | H167: 0.02 | I167: 0.01 | J167: 0 | K167: 0 | L167: 0 | M167: 0.6 | N167: 21.3 | O167: 3.3 | P167: 2.7 | Q167: 15 | R167: 0.24 | S167: 0 | T167: 0 | U167: 0
B168: Итого за Полдник | C168: =C166+C167 -> 230 | D168: =D166+D167 -> 2.4 | E168: 1.4 | F168: 55.5 | G168: 244.2 | H168: 0.05 | I168: 0.07 | J168: 60 | K168: 0 | L168: 5 | M168: 9.6 | N168: 273.3 | O168: 12.3 | P168: 23.7 | Q168: 41 | R168: 0.54 | S168: 0 | T168: 0 | U168: 0
B169: Ужин
A170: Рец. По сборнику | B170: Пельмени мясные отварные П/Ф | C170: 200 | D170: 10.34 | E170: 12.175 | F170: 20.34 | G170: 237 | H170: 0.159 | I170: 0 | J170: 0.18 | K170: 0 | L170: 0.491 | M170: 0 | N170: 0 | O170: 79.453 | P170: 10.579 | Q170: 239.018 | R170: 0.01 | S170: 0 | T170: 0 | U170: 0
A171: 54-2гн-2020 | B171: Чай-заварка | C171: 200 | D171: 0.2 | E171: 0 | F171: 6.4 | G171: 26.8 | H171: 0 | I171: 0.01 | J171: 0.3 | K171: 0 | L171: 0.04 | M171: 0.68 | N171: 20.76 | O171: 66.08 | P171: 3.83 | Q171: 7.18 | R171: 0.73 | S171: 0 | T171: 0 | U171: 0
A172: Пром. | B172: Хлеб пшеничный | C172: 30 | D172: 2.3 | E172: 0.2 | F172: 14.8 | G172: 70.3 | H172: 0.03 | I172: 0.01 | J172: 0 | K172: 0 | L172: 0 | M172: 149.7 | N172: 27.9 | O172: 6 | P172: 4.2 | Q172: 19.5 | R172: 0.33 | S172: 0.96 | T172: 1.8 | U172: 4.35
A173: Пром. | B173: Хлеб ржаной | C173: 20 | D173: 1.3 | E173: 0.2 | F173: 6.7 | G173: 34.2 | H173: 0.04 | I173: 0.02 | J173: 0 | K173: 0 | L173: 0 | M173: 122 | N173: 49 | O173: 7 | P173: 9.4 | Q173: 31.6 | R173: 0.78 | S173: 0 | T173: 6.18 | U173: 0
B174: Итого за Ужин | C174: =C170+C171+C172+C173 -> 450 | D174: =D170+D171+D172+D173 -> 14.14 | E174: 12.575 | F174: 48.24 | G174: 368.3 | H174: 0.229 | I174: 0.04 | J174: 0.48 | K174: 0 | L174: 0.531 | M174: 272.38 | N174: 97.66 | O174: 158.533 | P174: 28.009 | Q174: 297.298 | R174: 1.85 | S174: 0.96 | T174: 7.98 | U174: 4.35
B175: Ужин 2
A176: Пром. | B176: Ряженка 2.5% | C176: 200 | D176: 5.8 | E176: 5 | F176: 8.4 | G176: 101.8 | H176: 0.03 | I176: 0.21 | J176: 26.4 | K176: 0 | L176: 0 | M176: 76 | N176: 242 | O176: 218 | P176: 24 | Q176: 160 | R176: 0.2 | S176: 18 | T176: 1.8 | U176: 40
B177: Итого за ужин 2 | C177: =C176 -> 200 | D177: =D176 -> 5.8 | E177: 5 | F177: 8.4 | G177: 101.8 | H177: 0.03 | I177: 0.21 | J177: 26.4 | K177: 0 | L177: 0 | M177: 76 | N177: 242 | O177: 218 | P177: 24 | Q177: 160 | R177: 0.2 | S177: 18 | T177: 1.8 | U177: 40
B178: Итого за день | C178: =C155+C164+C168+C174+C177 -> 2030 | D178: 60.22 | E178: 51.435 | F178: 267.07 | G178: 1783.7 | H178: 0.799 | I178: 0.79 | J178: 1134.94 | K178: 0.19 | L178: 16.691 | M178: 1746.82 | N178: 1898.18 | O178: 922.223 | P178: 279.569 | Q178: 1115.348 | R178: 9.73 | S178: 169.09 | T178: 49.33 | U178: 294.32
A180: 7 день, 2 неделя
A181: № рецептуры | B181: Прием пищи, наименование блюда | C181: Масса | D181: Пищевые вещества | G181: Энергетическая ценность | H181: Витамины | M181: Минеральные вещества
D182: Белки | E182: Жиры | F182: Углеводы | H182: B1 | I182: B2 | J182: A | K182: D | L182: C | M182: Na | N182: K | O182: Ca | P182: Mg | Q182: P | R182: Fe | S182: I | T182: Se | U182: F
C183: г | D183: г | E183: г | F183: г | G183: ккал | H183: мг | I183: мг | J183: мкг рет.экв | K183: мкг | L183: мг | M183: мг | N183: мг | O183: мг | P183: мг | Q183: мг | R183: мг | S183: мкг | T183: мкг | U183: мкг
B184: Завтрак
A185: 54-22к-2020 | B185: Каша жидкая молочная овсяная | C185: 150 | D185: 5.1 | E185: 5.6 | F185: 18.5 | G185: 144.5 | H185: 0.11 | I185: 0.13 | J185: 21.81 | K185: 0.05 | L185: 0.46 | M185: 260.87 | N185: 177.7 | O185: 123.12 | P185: 34.24 | Q185: 140.9 | R185: 0.89 | S185: 39 | T185: 7.47 | U185: 37.21
A186: 54-4гн-2020 | B186: Чай с молоком и сахаром | C186: 200 | D186: 1.6 | E186: 1.1 | F186: 8.6 | G186: 50.9 | H186: 0.01 | I186: 0.07 | J186: 6.9 | K186: 0 | L186: 0.3 | M186: 19.68 | N186: 81.35 | O186: 103.48 | P186: 9.92 | Q186: 46.33 | R186: 0.78 | S186: 4.5 | T186: 0.88 | U186: 10
A187: Пром. | B187: Хлеб пшеничный | C187: 30 | D187: 2.3 | E187: 0.2 | F187: 14.8 | G187: 70.3 | H187: 0.03 | I187: 0.01 | J187: 0 | K187: 0 | L187: 0 | M187: 149.7 | N187: 27.9 | O187: 6 | P187: 4.2 | Q187: 19.5 | R187: 0.33 | S187: 0.96 | T187: 1.8 | U187: 4.35
B188: Итого за Завтрак | C188: =C185+C186+C187 -> 380 | D188: =D185+D186+D187 -> 9 | E188: 6.9 | F188: 41.9 | G188: 265.7 | H188: 0.15 | I188: 0.21 | J188: 28.71 | K188: 0.05 | L188: 0.76 | M188: 430.25 | N188: 286.95 | O188: 232.6 | P188: 48.36 | Q188: 206.73 | R188: 2 | S188: 44.46 | T188: 10.15 | U188: 51.56
B189: Обед
A190: №Т/К 41 | B190: Салат из моркови с сахаром и растительным маслом | C190: 60 | D190: 0.5 | E190: 6.1 | F190: 4.3 | G190: 74.3 | H190: 0.03 | I190: 0.03 | J190: 732.9 | K190: 0 | L190: 3.63 | M190: 89.79 | N190: 123.26 | O190: 13.5 | P190: 15.57 | Q190: 22.38 | R190: 0.66 | S190: 10.19 | T190: 0.09 | U190: 21.57
A191: 54-8с | B191: Суп гороховый | C191: 200 | D191: 7.9 | E191: 4.6 | F191: 19.28 | G191: 133 | H191: 0.13 | I191: 0.05 | J191: 97.18 | K191: 0 | L191: 4 | M191: 95 | N191: 383 | O191: 26 | P191: 29 | Q191: 80 | R191: 1.4 | S191: 15.96 | T191: 1.9 | U191: 28.88
A192: 54-4г-2020 | B192: Каша гречневая рассыпчатая | C192: 150 | D192: 8.2 | E192: 6.3 | F192: 35.9 | G192: 233.7 | H192: 0.21 | I192: 0.12 | J192: 19.19 | K192: 0.09 | L192: 0 | M192: 149.45 | N192: 219.36 | O192: 46.62 | P192: 120.16 | Q192: 180.99 | R192: 4.05 | S192: 22.28 | T192: 3.52 | U192: 16.06
A193: 54-25м-2020 | B193: Курица тушеная с морковью | C193: 40/60 | D193: 14.12 | E193: 5.78 | F193: 4.46 | G193: 126.4 | H193: 0.04 | I193: 0.05 | J193: 286.31 | K193: 0.02 | L193: 0 | M193: 249 | N193: 209 | O193: 33 | P193: 55 | Q193: 112 | R193: 0.9 | S193: 35.07 | T193: 12 | U193: 94.93
A194: Т/к №430 | B194: Чай с сахаром и яблоком | C194: 200 | D194: 0.2 | E194: 0 | F194: 8.2 | G194: 34.1 | H194: 0 | I194: 0 | J194: 0 | K194: 0 | L194: 0.4 | M194: 0 | N194: 0 | O194: 14.1 | P194: 6.5 | Q194: 8.4 | R194: 0.9 | S194: 0 | T194: 0 | U194: 0
A195: т/к №410 | B195: Треугольник П/Ф | C195: 70 | D195: 5.7 | E195: 5 | F195: 29.8 | G195: 221.7 | H195: 0.1 | I195: 0 | J195: 0 | K195: 0 | L195: 1.5 | M195: 0 | N195: 0 | O195: 26.8 | P195: 25.7 | Q195: 100.5 | R195: 1.5 | S195: 0 | T195: 0 | U195: 0
A196: Пром. | B196: Хлеб ржаной | C196: 20 | D196: 1.3 | E196: 0.2 | F196: 6.7 | G196: 34.2 | H196: 0.04 | I196: 0.02 | J196: 0 | K196: 0 | L196: 0 | M196: 122 | N196: 49 | O196: 7 | P196: 9.4 | Q196: 31.6 | R196: 0.78 | S196: 0 | T196: 6.18 | U196: 0
B197: Итого за Обед | C197: 800 | D197: =D190+D191+D192+D193+D194+D195+D196 -> 37.92 | E197: =E190+E191+E192+E193+E194+E195+E196 -> 27.98 | F197: 108.64 | G197: 857.4 | H197: 0.55 | I197: 0.27 | J197: 1135.58 | K197: 0.11 | L197: 9.53 | M197: 705.24 | N197: 983.62 | O197: 167.02 | P197: 261.33 | Q197: 535.87 | R197: 10.19 | S197: 83.5 | T197: 23.69 | U197: 161.44
B198: Полдник
A199: Пром. | B199: Сок яблочный | C199: 200 | D199: 1 | E199: 0.2 | F199: 20.2 | G199: 86.6 | H199: 0.02 | I199: 0.02 | J199: 0 | K199: 0 | L199: 4 | M199: 12 | N199: 240 | O199: 14 | P199: 8 | Q199: 14 | R199: 2.8 | S199: 0 | T199: 0 | U199: 0
A200: Пром. | B200: Сушка простая | C200: 20 | D200: 3.27 | E200: 0.39 | F200: 20.64 | G200: 99.1 | H200: 0.05 | I200: 0.02 | J200: 0 | K200: 0 | L200: 0 | M200: 137.94 | N200: 46.06 | O200: 7.92 | P200: 12.01 | Q200: 31.58 | R200: 0.76 | S200: 0 | T200: 0 | U200: 0
B201: Итого за Полдник | C201: =C199+C200 -> 220 | D201: =D199+D200 -> 4.27 | E201: 0.59 | F201: 40.84 | G201: 185.7 | H201: 0.07 | I201: 0.04 | J201: 0 | K201: 0 | L201: 4 | M201: 149.94 | N201: 286.06 | O201: 21.92 | P201: 20.01 | Q201: 45.58 | R201: 3.56 | S201: 0 | T201: 0 | U201: 0
B202: Ужин
A203: 54-6г-2020 | B203: Рис отварной | C203: 150 | D203: 5.3 | E203: 4.9 | F203: 32.8 | G203: 196.8 | H203: 0.06 | I203: 0.02 | J203: 18.36 | K203: 0.09 | L203: 0 | M203: 149.04 | N203: 53.8 | O203: 105.83 | P203: 7.19 | Q203: 40.7 | R203: 0.73 | S203: 20.77 | T203: 0.06 | U203: 11.92
A204: 54-7р-2020 | B204: Рыба припущенная в молоко | C204: 70/30 | D204: 8.06 | E204: 4.42 | F204: 2.89 | G204: 131.6 | H204: 0.08 | I204: 0.11 | J204: 9.02 | K204: 0.16 | L204: 1 | M204: 111 | N204: 347 | O204: 68 | P204: 44 | Q204: 202 | R204: 0.7 | S204: 133.48 | T204: 11.9 | U204: 572.6
A205: 54-1хн-2020 | B205: Компот из смеси сухофруктов | C205: 200 | D205: 0.5 | E205: 0 | F205: 19.8 | G205: 81 | H205: 0 | I205: 0 | J205: 15 | K205: 0 | L205: 0.02 | M205: 0.05 | N205: 0.17 | O205: 108.08 | P205: 2.11 | Q205: 4.31 | R205: 0.08 | S205: 0 | T205: 0 | U205: 0
A206: Пром. | B206: Хлеб пшеничный | C206: 30 | D206: 2.3 | E206: 0.2 | F206: 14.8 | G206: 70.3 | H206: 0.03 | I206: 0.01 | J206: 0 | K206: 0 | L206: 0 | M206: 149.7 | N206: 27.9 | O206: 6 | P206: 4.2 | Q206: 19.5 | R206: 0.33 | S206: 0.96 | T206: 1.8 | U206: 4.35
A207: Пром. | B207: Хлеб ржаной | C207: 20 | D207: 1.3 | E207: 0.2 | F207: 6.7 | G207: 34.2 | H207: 0.04 | I207: 0.02 | J207: 0 | K207: 0 | L207: 0 | M207: 122 | N207: 49 | O207: 7 | P207: 9.4 | Q207: 31.6 | R207: 0.78 | S207: 0 | T207: 6.18 | U207: 0
B208: Итого за Ужин | C208: 500 | D208: =D203+D204+D205+D210+D206 -> 21.96 | E208: =E203+E204+E205+E210+E206 -> 14.52 | F208: 78.69 | G208: 581.5 | H208: 0.2 | I208: 0.35 | J208: 68.78 | K208: 0.25 | L208: 1.02 | M208: 485.79 | N208: 670.87 | O208: 505.91 | P208: 81.5 | Q208: 426.51 | R208: 2.04 | S208: 173.21 | T208: 15.56 | U208: 628.87
B209: Ужин 2
... 148 more rows
